Cogmind - Beta 14 @@@ ROGUE MODE // 2024.08.19 @ 00:39:41 Player: gigi283 Result: Destroyed by H-61 Shepherd with Heavy Assault Cannon Performance ------------- Evolutions (2) 1000 Regions Visited (7) 1400 Robots Destroyed (108) 540 Value Destroyed (4063) 4063 Prototype IDs (30) 600 Alien Tech Used (0) 0 Bonus (1758) 1758 TOTAL SCORE: 9361 Bonus ------- High Alert Combat Kills 758 Entered Garrisons 200 Used RIF Installer 500 Aligned with FarCom 300 Cogmind --------- Core Integrity 0/550 Matter 300/300 Energy 182/240 System Corruption 4% Temperature Cool (0) Movement Rolling (120) Ox2 Location -8/Materials Parts ------- > --- POWER (1) -------- Nuclear Core > --- PROPULSION (3) --- Armored Wheel > --- UTILITY (4) ------ Improved Heat Sink Large Storage Unit Signal Interpreter Relay Coupler [Swarmer] (36) > --- WEAPON (3) ------- Gauss Rifle > --- INVENTORY (15) --- Reinforced Deuterium Engine Superbattery (1500) Experimental Sensor Array Active Sensor Suite Weapon Cycler Hacking Suite Authchip [R/Combat] Relay Coupler [NC] (23) Relay Coupler [NC] (22) Chronowheel Guided Plasma Cannon Missile Launcher Great Maul Peak State ------------ > --- POWER ------------ Light Deuterium Engine > --- PROPULSION ------- Wheel Wheel Wheel > --- UTILITY ---------- Disposable Heat Sink Large Storage Unit Signal Interpreter Medium Reactive Plating > --- WEAPON ----------- Guided Plasma Cannon Gauss Rifle Great Maul > --- INVENTORY -------- Light Nuclear Core Reinforced Deuterium Engine Thermal Generator Superbattery Experimental Sensor Array Active Sensor Suite Improved Terrain Scanner Weapon Cycler Hardened Heavy Armor Plating Chronowheel Mini Grenade Launcher Missile Launcher [Rating: 37] Favorites ----------- Power Light Nuclear Core Engine Cooled Ion Engine Power Core Light Nuclear Core Propulsion Wheel Treads Light Treads Leg Aluminum Leg Wheel Wheel Utility Large Storage Unit Device Disposable Heat Sink Storage Large Storage Unit Processor Signal Interpreter Hackware Relay Coupler [Swarmer] Protection Medium Reactive Plating Weapon Assault Rifle Energy Gun Medium Laser Energy Cannon Guided Plasma Cannon Ballistic Gun Assault Rifle Ballistic Cannon Battle Cannon Launcher Missile Launcher Impact Weapon Great Maul Slashing Weapon Mining Claw Build | -11 -10 -10 -10 -9 -8 -8 -8 ------- Run | Yrd Mat Min Exi Min Mat Gar Mat Slots Evolved 4 | . . . . . 4 . . Power . | . . . . . . . . Propulsion 1 | . . . . . 1 . . Utility 2 | . . . . . 2 . . Weapon 1 | . . . . . 1 . . Parts Attached 82 | 7 4 3 1 2 31 16 18 Power 11 | 1 1 . . . 4 2 3 Engine 6 | 1 1 . . . 3 . 1 Core 5 | . . . . . 1 2 2 Reactor . | . . . . . . . . Propulsion 27 | 2 3 . . 1 8 6 7 Treads 2 | . . . . . 1 1 . Leg 5 | . . . . . . 5 . Wheel 20 | 2 3 . . 1 7 . 7 Hover . | . . . . . . . . Flight . | . . . . . . . . Utility 18 | 1 . 3 1 . 6 4 3 Device 10 | . . 2 . . 3 2 3 Storage 3 | 1 . 1 . . 1 . . Processor 1 | . . . 1 . . . . Hackware 1 | . . . . . . 1 . Protection 3 | . . . . . 2 1 . Artifact . | . . . . . . . . Weapon 26 | 3 . . . 1 13 4 5 Energy Gun 6 | 1 . . . . 2 . 3 Energy Cannon 2 | . . . . . 2 . . Ballistic Gun 9 | 2 . . . . 3 2 2 Ballistic Cannon 2 | . . . . . 2 . . Launcher 4 | . . . . 1 1 2 . Special Weapon . | . . . . . . . . Impact Weapon 2 | . . . . . 2 . . Slashing Weapon 1 | . . . . . 1 . . Piercing Weapon . | . . . . . . . . Special Melee Weapon . | . . . . . . . . Unidentified Prototypes 3 | . 1 1 . . . . 1 Parts Lost 24 | . 2 . . . 9 7 6 Power 3 | . 1 . . . 1 . 1 Propulsion 12 | . 1 . . . 3 5 3 Utility 4 | . . . . . 2 2 . Weapon 5 | . . . . . 3 . 2 Highest Loss Streak 9 | . 1 . . . 9 3 4 To Critical Strikes . | . . . . . . . . Average Slot Usage (%) 96 | . 83 93 100 100 96 95 99 Engine 6 | . 14 14 14 14 5 3 2 Core 3 | . . . . . 3 5 6 Leg 2 | . . . . . . 6 7 Wheel 23 | . 26 28 28 28 25 18 19 Device 7 | . . 7 13 . 8 8 9 Storage 10 | . 14 14 14 14 8 9 9 Processor 7 | . . . . 14 9 9 9 Hackware 1 | . . . . . . . 9 Protection 5 | . . . . . 8 8 . Energy Gun 5 | . 14 14 14 12 1 . 16 Energy Cannon 3 | . . . . . 5 5 . Ballistic Gun 9 | . 14 14 14 14 6 8 9 Ballistic Cannon 1 | . . . . . 5 . . Launcher 2 | . . . . 1 3 3 . Impact Weapon 3 | . . . . . 2 9 . Peak Build Rating 37 | 6 9 18 16 14 37 37 35 Average Rating 26 | 4 8 11 15 14 30 34 33 On Entrance 15 | . 6 9 13 14 14 37 29 Naked Turns . | . . . . . . . . Heaviest Build 69 | 14 17 33 33 33 69 66 51 Greatest Support 32 | 26 26 20 20 20 30 30 32 Greatest Overweight (x) 13 | . 1 1 1 1 5 13 4 Average Overweight (x) 1 | . . . 1 1 1 1 1 Largest Inventory Capacity 15 | 8 8 15 15 15 15 15 15 Average Capacity 14 | 6 8 14 15 15 14 15 15 Most Carried 15 | 5 8 13 14 15 15 15 15 Average Carried 12 | 2 6 11 13 14 11 14 14 Final Capacity 15 | 8 8 15 15 15 15 15 15 Final Carried 15 | 2 8 12 14 14 15 15 15 Class Distribution -------------------- 37% | Scavenger-Mutant 32% | Mutant 30% | Scavenger-Skirmisher Dominant Class ---------------- Mutant | -10/Materials Mutant | -10/Mines Mutant | -10/Exiles Mutant | -9/Mines Scavenger-Skirmisher | -8/Materials Scavenger-Mutant | -8/Garrison Scavenger-Skirmisher | -8/Materials Resources | -11 -10 -10 -10 -9 -8 -8 -8 ----------- Run | Yrd Mat Min Exi Min Mat Gar Mat Matter Collected 2040 | 258 155 48 . 108 627 396 448 Remotely . | . . . . . . . . Salvage Created 3733 | 72 413 45 . 106 1302 1100 695 Parts 227 | 2 27 8 . 15 75 47 53 Haulers Intercepted . | . . . . . . . . Recyclers Shooed 4 | . 2 1 . . 1 . . Parts Field Recycled . | . . . . . . . . Retrieved Matter . | . . . . . . . . Parts Self-Destructed . | . . . . . . . . Prevented . | . . . . . . . . Kills | -11 -10 -10 -10 -9 -8 -8 -8 ------- Run | Yrd Mat Min Exi Min Mat Gar Mat Combat Hostiles Destroyed 80 | . 8 . . 7 32 23 10 Melee 6 | . . . . . 5 1 . Guns 35 | . 8 . . 3 3 11 10 Cannons 22 | . . . . . 15 7 . AOE 16 | . . . . 4 8 4 . Classes Destroyed 15 | 1 4 1 . 1 5 . 3 Worker 9 | . 3 1 . . 3 . 2 Builder 6 | . . . . 1 3 . 2 Tunneler 2 | . . 2 . . . . . Recycler 3 | 1 2 . . . . . . Mechanic 1 | . . . . . . . 1 Operator 1 | . . . . . . . 1 Watcher 6 | . 1 . . . 3 . 2 Swarmer 24 | . 3 . . 7 10 4 . Grunt 33 | . 5 . . . 10 11 7 Brawler 3 | . . . . . 1 2 . Duelist 2 | . . . . . 1 1 . Sentry 14 | . . . . . 8 5 1 Specialist 1 | . . . . . . . 1 Hunter 2 | . . . . . 1 . 1 Heavy 1 | . . . . . 1 . . Best Kill Streak 10 | 1 5 2 . 4 10 5 6 Combat Bots Only 8 | . 3 . . 4 8 5 3 Max Kills in Single Turn 3 | 1 2 1 . 2 3 3 2 Gunslinging 1 | . 1 . . . . 1 . Exploded 3 | . . . . 2 3 3 . Melee 1 | . . . . . 1 1 . Uniques/NPCs Destroyed . | . . . . . . . . Combat | -11 -10 -10 -10 -9 -8 -8 -8 -------- Run | Yrd Mat Min Exi Min Mat Gar Mat Hostile Shots Fired 342 | . 29 . . 23 156 61 73 Missed 77 | . 10 . . 5 38 9 15 Damage Taken 3726 | . 182 . . 156 1643 852 893 Core 638 | . 48 . . 40 234 124 192 Absorbed by Shields . | . . . . . . . . Ignored by Resistances 190 | . . . . . 182 8 . Regen/Repaired (Parts) 166 | . . . . . 166 . . Core Remaining (%) 82 | 100 . . . 64 . . . Volleys Fired 262 | 2 30 6 . 16 89 63 56 Largest 3 | 2 2 2 . 2 3 2 3 Hottest 154 | 70 70 70 . 70 122 120 154 Shots Fired 447 | 4 60 12 . 30 121 81 139 Gun 348 | 4 60 12 . 27 50 56 139 Cannon 84 | . . . . . 63 21 . Launcher 15 | . . . . 3 8 4 . Special . | . . . . . . . . Kinetic 209 | 2 30 6 . 16 43 56 56 Thermal 217 | 2 30 6 . 11 64 21 83 Explosive 15 | . . . . 3 8 4 . Electromagnetic 6 | . . . . . 6 . . Robot Hit Streak 31 | 3 16 3 . 4 31 21 10 Robot Miss Streak 8 | . 2 2 . 3 2 2 8 Penetration Max 1 | . . . . . . 1 1 Secondary Targets 5 | . 1 . . . 2 2 . Max Gunslinging Chain 1 | . 1 . . . 1 1 . Shots Hit Robots 312 | 3 44 5 . 13 104 59 84 Core Hits 149 | 2 20 4 . 8 49 34 32 Critical Kills 2 | . 1 . . . . 1 . Critical Parts Destroyed 3 | . . . . . 2 . 1 Critical Strikes 12 | 1 3 . . . 2 1 5 Burn 7 | 1 2 . . . . . 4 Destroy 3 | . 1 . . . . 1 1 Smash 2 | . . . . . 2 . . Melee Attacks 33 | . . . . . 28 5 . Impact 26 | . . . . . 21 5 . Slashing 7 | . . . . . 7 . . Piercing . | . . . . . . . . Sneak Attacks 1 | . . . . . 1 . . Combat Hostiles . | . . . . . . . . Follow-up Attacks . | . . . . . . . . Damage Inflicted 7894 | 38 560 67 . 339 3310 1913 1667 Guns 3733 | 38 560 67 . 137 562 702 1667 Cannons 2518 | . . . . . 1779 739 . Explosions 1175 | . . . . 202 623 350 . Melee 468 | . . . . . 346 122 . Ramming . | . . . . . . . . Kinetic 2306 | 13 285 29 . 61 534 702 682 Thermal 3896 | 25 275 38 . 76 1758 739 985 Explosive 1175 | . . . . 202 623 350 . Electromagnetic 49 | . . . . . 49 . . Impact 468 | . . . . . 346 122 . Slashing . | . . . . . . . . Piercing . | . . . . . . . . Highest Corruption 4 | . . . . . 2 2 4 Average Corruption 2 | . . . . . 2 2 2 Corruption Purged . | . . . . . . . . Corruption Blocked . | . . . . . . . . Effects 58 | . . . . . 3 39 16 Message Errors 18 | . . . . . 1 13 4 Matter Fused 11 | . . . . . 1 7 3 Heat Flow Errors 3 | . . . . . . 3 . Energy Discharges 8 | . . . . . . 6 2 Data Loss (minor) 7 | . . . . . . 5 2 Data Loss (major) 3 | . . . . . . 1 2 Misfires 2 | . . . . . . 2 . Alerts 5 | . . . . . 1 2 2 Weapon Failures 1 | . . . . . . . 1 Overload Shots . | . . . . . . . . Overflow Damage 243 | . . . . . 177 66 . Projectiles 108 | . . . . . 93 15 . Explosions 41 | . . . . . 22 19 . Melee 94 | . . . . . 62 32 . Knockbacks 4 | . . . . . 3 1 . Impact 1 | . . . . . . 1 . Kinetic 3 | . . . . . 3 . . Secondary . | . . . . . . . . Self-Inflicted Damage 198 | . . . . 12 115 71 . Shots 6 | . . . . 1 4 1 . Rammed . | . . . . . . . . Targets Rammed . | . . . . . . . . Kicked . | . . . . . . . . Crushed . | . . . . . . . . Highest Temperature 594 | 18 21 28 . 31 371 276 594 Average Temperature 105 | 10 7 6 . 8 105 121 157 Received Heat Transfer 1491 | . 69 . . . 702 351 369 Effects 11 | . . . . . 4 . 7 Shutdowns 3 | . . . . . 1 . 2 Energy Bleed 1 | . . . . . 1 . . Interference 3 | . . . . . . . 3 Matter Decay 2 | . . . . . 2 . . Damage (major) 1 | . . . . . . . 1 Damage (core) 1 | . . . . . . . 1 Siege Activations . | . . . . . . . . Robots Corrupted 1 | . . . . . . 1 . Combat Hostiles . | . . . . . . . . Parts Fried 1 | . . . . . . 1 . Impact Corruptions 4 | . . . . . 2 2 . Robots Melted 1 | . . . . . 1 . . Combat Hostiles 1 | . . . . . 1 . . Parts Melted 14 | 1 1 . . . 8 1 3 Heat Transferred 9332 | 148 962 111 . 222 3915 1680 2294 Parts Sabotaged . | . . . . . . . . Parts Stolen . | . . . . . . . . Parts Stripped . | . . . . . . . . Power Chain Reactions . | . . . . . . . . Alert | -11 -10 -10 -10 -9 -8 -8 -8 ------- Run | Yrd Mat Min Exi Min Mat Gar Mat Peak Influence 1901 | 5 263 45 . 187 576 1901 1151 Initial 926 | . 3 30 . . 14 374 926 Average 493 | 2 120 23 . 56 272 886 1019 Maximum Alert Level 5 | . 1 . . . 2 5 4 Low Security (%) 33 | 100 74 100 . 100 29 . . Level 1 20 | . 25 . . . 54 5 . Level 2 18 | . . . . . 16 41 . Level 3 16 | . . . . . . 24 80 Level 4 9 | . . . . . . 22 19 Level 5 1 | . . . . . . 6 . High Security . | . . . . . . . . Max Security . | . . . . . . . . Squads Dispatched 19 | . 1 . . . 12 . 6 Investigation 5 | . 1 . . . 2 . 2 Extermination . | . . . . . . . . Reinforcement 8 | . . . . . 4 . 4 Assault . | . . . . . . . . Garrison 6 | . . . . . 6 . . Intercept . | . . . . . . . . Searches Triggered . | . . . . . . . . Construction Impeded 2 | . . . . . 1 . 1 Haulers Reinforced . | . . . . . . . . Active Scanning Responses . | . . . . . . . . Cargo Convoy Interrupts . | . . . . . . . . Stealth | -11 -10 -10 -10 -9 -8 -8 -8 --------- Run | Yrd Mat Min Exi Min Mat Gar Mat Distress Signals 7 | . . . . . 5 . 2 Communications Jammed . | . . . . . . . . Distress Signals . | . . . . . . . . Times Spotted 106 | . 12 . . 8 41 25 20 Peak Tracking Total 6 | . 4 . . 4 6 4 4 Tactical Retreats 5 | . . . . 1 2 2 . Traps | -11 -10 -10 -10 -9 -8 -8 -8 ------- Run | Yrd Mat Min Exi Min Mat Gar Mat Traps Triggered 13 | . . . . . 2 8 3 Indirectly . | . . . . . . . . Trap Hack Attempts . | . . . . . . . . Triggered . | . . . . . . . . Disarmed . | . . . . . . . . Reprogrammed . | . . . . . . . . Reused . | . . . . . . . . Traps Extracted . | . . . . . . . . Installed . | . . . . . . . . Triggered 1 | . . 1 . . . . . Machines | -11 -10 -10 -10 -9 -8 -8 -8 ---------- Run | Yrd Mat Min Exi Min Mat Gar Mat Machines Disabled 9 | . . . . . 2 7 . Max in Single Turn 2 | . . . . . 1 2 . Garrison Access 1 | . . . . . . . 1 Garrison Relay 4 | . . . . . . 4 . Phase Generator 1 | . . . . . . 1 . Machines Repaired . | . . . . . . . . Machines Dismantled . | . . . . . . . . Machines Sabotaged . | . . . . . . . . Overloaded Fab Kills . | . . . . . . . . Hacking | -11 -10 -10 -10 -9 -8 -8 -8 --------- Run | Yrd Mat Min Exi Min Mat Gar Mat Machines Accessed 23 | . 2 . 1 1 11 3 5 Terminals 16 | . 2 . . 1 7 3 3 Fabricators . | . . . . . . . . Repair Stations 3 | . . . . . 2 . 1 Recycling Units . | . . . . . . . . Scanalyzers 1 | . . . . . 1 . . Garrison Access 2 | . . . . . 1 . 1 Total Hacks 69 | . 5 . 1 1 40 6 16 Successful 37 | . 2 . 1 1 26 1 6 Failed 32 | . 3 . . . 14 5 10 Catastrophic 5 | . 2 . . . 2 1 . Database Lockouts . | . . . . . . . . Manual 6 | . 1 . 1 . 3 . 1 Terminals 42 | . 5 . . 1 20 6 10 Fabricators . | . . . . . . . . Repair Stations 16 | . . . . . 11 . 5 Recycling Units . | . . . . . . . . Scanalyzers 8 | . . . . . 8 . . Garrison Access 2 | . . . . . 1 . 1 Terminal Hacks 20 | . 2 . 1 1 11 1 4 Record 2 | . . . . . 1 . 1 Prototype ID Bank 2 | . 1 . . . 1 . . Emergency Access Points 2 | . . . . . 1 1 . Alert Level 6 | . 1 . . . 4 . 1 Locate Traps 2 | . . . . . 2 . . Dispatch Records 2 | . . . . 1 . . 1 Recall Investigation 1 | . . . . . 1 . . Zone Layout 2 | . . . . . 1 . 1 Derelict Proto ID Bank 1 | . . . 1 . . . . Fabricator Hacks . | . . . . . . . . Repair Station Hacks 8 | . . . . . 7 . 1 Scan Component 5 | . . . . . 4 . 1 Repair 3 | . . . . . 3 . . Recycling Unit Hacks . | . . . . . . . . Scanalyzer 7 | . . . . . 7 . . Insert Component 4 | . . . . . 4 . . Analyze 3 | . . . . . 3 . . Garrison Access Hacks 2 | . . . . . 1 . 1 Unlock Access 1 | . . . . . 1 . . Seal Access 1 | . . . . . . . 1 Unauthorized Hacks . | . . . . . . . . Terminals . | . . . . . . . . Fabricators . | . . . . . . . . Repair Stations . | . . . . . . . . Recycling Units . | . . . . . . . . Scanalyzers . | . . . . . . . . Garrison Access . | . . . . . . . . Data Cores Recovered 1 | . . . . . . . 1 Used . | . . . . . . . . Hacking Detections 12 | . 1 . . . 5 3 3 Full Trace Events 5 | . 1 . . . 2 1 1 Feedback Events . | . . . . . . . . Feedback Blocked . | . . . . . . . . Robot Schematics Acquired . | . . . . . . . . Robots Built . | . . . . . . . . Authchips . | . . . . . . . . Time . | . . . . . . . . Total Robot Build Rating . | . . . . . . . . Part Schematics Acquired 1 | . . . . . 1 . . Parts Built . | . . . . . . . . Authchips . | . . . . . . . . Time . | . . . . . . . . Total Part Build Rating . | . . . . . . . . Parts Repaired 3 | . . . . . 3 . . Time 172 | . . . . . 172 . . Parts Recycled . | . . . . . . . . Recycled Matter . | . . . . . . . . Retrieved Matter . | . . . . . . . . Retrieved Components . | . . . . . . . . Parts Scanalyzed 1 | . . . . . 1 . . Part Schematics Acquired 1 | . . . . . 1 . . Parts Damaged . | . . . . . . . . Bothacking | -11 -10 -10 -10 -9 -8 -8 -8 ------------ Run | Yrd Mat Min Exi Min Mat Gar Mat Used RIF Installer 1 | . . . . . . 1 . Robots Hacked . | . . . . . . . . Non-combat . | . . . . . . . . Combat . | . . . . . . . . Robot Hacks Applied . | . . . . . . . . Relay Couplers Released 16 | . . . . . . 16 . Machine Destruction 16 | . . . . . . 16 . Attached 1 | . . . . . . 1 . Fabnet Peak Effective % . | . . . . . . . . Robots Rewired . | . . . . . . . . Allies Hacked . | . . . . . . . . Hacks Repelled . | . . . . . . . . Allies | -11 -10 -10 -10 -9 -8 -8 -8 -------- Run | Yrd Mat Min Exi Min Mat Gar Mat Total Allies 2 | . . 2 . . . . . Largest Group 2 | . . 2 1 . . . . Highest-Rated Group 45 | . . 45 31 . . . . Highest-Rated Ally 31 | . . 31 31 . . . . Total Orders . | . . . . . . . . Ally Attacks . | . . . . . . . . Total Damage . | . . . . . . . . Kills . | . . . . . . . . Allies Corrupted . | . . . . . . . . Allies Melted . | . . . . . . . . Intel | -11 -10 -10 -10 -9 -8 -8 -8 ------- Run | Yrd Mat Min Exi Min Mat Gar Mat Robot Analysis Total . | . . . . . . . . Derelict Logs Recovered 4 | . . 3 . 1 . . . Drone Launches . | . . . . . . . . Drone Recoveries . | . . . . . . . . Exploration | -11 -10 -10 -10 -9 -8 -8 -8 ------------- Run | Yrd Mat Min Exi Min Mat Gar Mat Turns Passed 8650 | 83 483 690 454 803 2667 2556 914 Spaces Moved 4822 | 71 404 687 473 514 1125 1116 432 Core 24 | 6 . . . . . 18 . Treads 34 | . . . . . 11 23 . Legs 390 | . . . . . . 293 97 Wheels 4374 | 65 404 687 473 514 1114 782 335 Hover . | . . . . . . . . Flight . | . . . . . . . . Fastest Speed 50 | 50 80 80 95 95 95 95 95 Average Speed 108 | 86 86 94 95 95 105 138 116 Slowest Speed 700 | 90 115 95 95 95 250 700 190 Overloaded Moves . | . . . . . . . . Propulsion Burnouts . | . . . . . . . . Robots Hopped . | . . . . . . . . Cave-ins Triggered . | . . . . . . . . Exploration Rate (%) 63 | 4 39 98 89 87 77 84 26 Regions Visited 7 Branch Regions 3 Pre-discovered Areas . | . . . . . . . . Known Exits Taken 3 | . . . 1 1 1 . . Unknown Exits Taken 3 | 1 1 1 . . . . . Scrap Searched 4 | . . 2 . 2 . . . Spaces Dug 18 | . . . . . 18 . . Terrain Destroyed 187 | . . . . 14 76 95 2 Melee 15 | . . . . . 15 . . Projectile 7 | . . . . . 4 1 2 AOE 165 | . . . . 14 57 94 . Terrain Rammed . | . . . . . . . . Walls Destroyed . | . . . . . . . . Machines Disabled . | . . . . . . . . Actions | -11 -10 -10 -10 -9 -8 -8 -8 --------- Run | Yrd Mat Min Exi Min Mat Gar Mat Total 7754 | 87 477 717 477 798 2431 2037 730 Wait 2383 | . 21 15 . 265 1114 764 204 Move 4814 | 70 403 686 472 513 1124 1114 432 Hop . | . . . . . . . . Pick Up 70 | 8 13 5 3 1 28 7 5 Fast Attach 20 | . . 1 . . 2 8 9 Attach 36 | 6 2 2 . . 19 4 3 Detach 9 | . . 1 . . 4 3 1 Swap 27 | 1 3 . 1 2 10 4 6 Drop 45 | . 5 1 1 1 13 10 14 Fire 262 | 2 30 6 . 16 89 63 56 Melee 33 | . . . . . 28 5 . Ram . | . . . . . . . . Kick . | . . . . . . . . Crush . | . . . . . . . . Escape Stasis 55 | . . . . . . 55 . Rewire . | . . . . . . . . Trap . | . . . . . . . . Miscellaneous . | . . . . . . . . Route ------- -11/Scrapyard -10/Materials (discovered 2 exits: [*Mat] / [*Min]) -10/Mines (discovered 3 exits: [*Mat x2] / *Exi) -10/Exiles -9/Mines (discovered 2 exits: *Mat x2) -8/Materials (discovered 4 exits: *Fac x3 / Gar) -8/Garrison (discovered 3 exits: *Mat x3) -8/Materials History --------- Turn | Location | Event 13 | -11/Scrapyard | Discovered new exit (range 15) 84 | -11/Scrapyard | Entered Materials 239 | -10/Materials | Discovered new exit (range 16) 315 | -10/Materials | Discovered new exit (range 16) 317 | -10/Materials | Build established: Mutant 567 | -10/Materials | Entered Mines 607 | -10/Mines | Found DCF Scrap (12 items) 622 | -10/Mines | Learned Materials interactive machine intel 642 | -10/Mines | Learned location of 1 exit from Materials 647 | -10/Mines | Found a damaged Exp. Sensor Array with a note attached 649 | -10/Mines | Found Prototype Device 650 | -10/Mines | Identified Exp. Sensor Array 763 | -10/Mines | A weapon hastily lodged in a ceiling crevice suddenly fell to the ground 927 | -10/Mines | Discovered new exit (range 16) 1065 | -10/Mines | Learned Materials terminal intel 1070 | -10/Mines | Discovered new exit (range 5) 1250 | -10/Mines | Deemed a non-threat by the Exiles lab entrance 1251 | -10/Mines | Discovered new exit (range 5) 1257 | -10/Mines | Entered Exiles 1257 | -10/Exiles | Accompanied by 1 ally 1284 | -10/Exiles | Met 8R-AWN 1287 | -10/Exiles | Led the pair of lost Derelicts to a safe place 1299 | -10/Exiles | Met EX-HEX 1330 | -10/Exiles | Met EX-BIN 1342 | -10/Exiles | Aligned with FarCom system 1343 | -10/Exiles | Given EX-Vault access code 1372 | -10/Exiles | Opened EX-Vault 1377 | -10/Exiles | Found Chronowheel 1381 | -10/Exiles | Found Gui. Plasma Cannon 1387 | -10/Exiles | Found Superbattery 1411 | -10/Exiles | Warned to stay clear of 0b10 Research branches 1448 | -10/Exiles | Met EX-DEC 1518 | -10/Exiles | Visited The Gauntlet 1694 | -10/Exiles | Discovered new exit (range 14) 1709 | -10/Exiles | Identified exit to Mines 1711 | -10/Exiles | Stole three prototypes: Superbattery, Chronowheel, Gui. Plasma Cannon 1711 | -10/Exiles | Entered Mines 1824 | -9/Mines | Learned Materials security intel 1949 | -9/Mines | Discovered new exit (range 13) 1961 | -9/Mines | Identified exit to Materials 2495 | -9/Mines | Discovered exit to Materials (range 8) 2514 | -9/Mines | Entered Materials 2514 | -8/Materials | Evolved 4 slots: Propulsion x1, Utility x2, Weapon x1 2515 | -8/Materials | Identified exit to Factory 2517 | -8/Materials | Loaded intel: 19 interactive machine locations 2518 | -8/Materials | Loaded intel: 12 terminal locations 2814 | -8/Materials | Build established: Scavenger-Skirmisher 2926 | -8/Materials | Garrison activated, responded to threat 3023 | -8/Materials | Destroyed 8 combat bots 3986 | -8/Materials | Garrison activated, responded to threat 4058 | -8/Materials | Lost 9 parts (1p3n2u3w) 4179 | -8/Materials | Repaired Deuterium Engine 4206 | -8/Materials | Repaired Lrg. Storage Unit 4300 | -8/Materials | Build established: Mutant 4531 | -8/Materials | Discovered exit to Factory (range 5) 4545 | -8/Materials | Found Prototype Device 4616 | -8/Materials | Build established: Scavenger-Skirmisher 4735 | -8/Materials | Identified Active Sensor Suite 4950 | -8/Materials | Discovered exit to Factory (range 4) 4993 | -8/Materials | Build established: Scavenger-Mutant 5099 | -8/Materials | Repaired Exp. Sensor Array 5180 | -8/Materials | Identified exit to Garrison 5181 | -8/Materials | Entered Garrison 5325 | -8/Garrison | Triggered checkpoint 5334 | -8/Garrison | Core integrity fell below 50% 5349 | -8/Garrison | Garrison Relay disabled 5465 | -8/Garrison | Triggered checkpoint 5465 | -8/Garrison | Triggered checkpoint 6013 | -8/Garrison | Discovered new exit (range 9) 6021 | -8/Garrison | Identified exit to Materials 6055 | -8/Garrison | Triggered checkpoint 6116 | -8/Garrison | Installed Relay Interface Framework 6128 | -8/Garrison | Garrison Relay disabled 6684 | -8/Garrison | Discovered exit to Materials (range 14) 6731 | -8/Garrison | Triggered checkpoint 6741 | -8/Garrison | Gui. Plasma Cannon suddenly broke down 6832 | -8/Garrison | Garrison Relay disabled 6993 | -8/Garrison | Triggered checkpoint 7061 | -8/Garrison | Triggered checkpoint 7246 | -8/Garrison | Lost 3 parts (3n) 7291 | -8/Garrison | Discovered exit to Materials (range 12) 7592 | -8/Garrison | Phase Generator disabled 7657 | -8/Garrison | Triggered checkpoint 7688 | -8/Garrison | Garrison Relay disabled 7737 | -8/Garrison | Entered Materials 8055 | -8/Materials | Core integrity fell below 20% 8115 | -8/Materials | Build established: Scavenger-Skirmisher 8651 | -8/Materials | Destroyed by H-61 Shepherd with Heavy Assault Cannon Last Messages --------------- 08608_ Slug penetrates X-57 Shotgunner. 08614_ Hpw. Shotgun melted. 08614_ X-57 Shotgunner destroyed. 08614_ Slug penetrates Wall. 08619_ K-01 Serf collects debris. 08633_ System corrupted: Energy discharge (-35). 08636_ K-01 Serf collects debris. 08643_ Acquired 16 matter. 08645_ Dropped Lgt. Nuclear Core. 08648_ Penetrated by Slug. 08648_ Wheel destroyed. 08649_ Slug penetrates H-61 Shepherd. 08649_ U-05 Engineer builds a Wall. 08651_ H-61 Shepherd calls for reinforcements. 08651_ ALERT: Hostile activity reported, dispatching reinforcements to area. 08651_ Adv. Beam Rifle destroyed. 08651_ Wheel destroyed. 08651_ Field Laser destroyed. 08651_ Critical hit (Blast). Map ----- +----------------------------------------------------+ | ?????????????????????????????????????????????????? | | ?????????????????????????????????????????????????? | | ?????????????????????????????????????????????????? | | ?????????????????????????????????????????????????? | | ?????????????????????????????????????????????????? | | ?????????????????????????????????????????????????? | | ?????????????????????????????????????????????????? | | ?????????????????????????????????????????????????? | | ?????????????????????????????????????????????????? | | ?????????????????????????????????????????????????? | | ?????????????????????????????????????????????????? | | ?????????????????????????????????????????????????? | | ?????????????????????????????????????????????????? | | ?????????????????????????????????????????????????? | | ?????????????????????????????????????????????????? | | ?????????????????????????????????????????????????? | | ?????????????????????????????????????????????????? | | ?????????????????????????????????????????????????? | | ?????????????????????????????????????????????????? | | ?????????????????????????????????????????????????? | | ?????????????????????????????????????????????????? | | ?????????????????????????????????????????????????? | | ??????????????????????###########+### ?????????? | | ??????????????????????# t * ????????? | | ????????????????????# # H ????????? | | ?????????????????????## %@ a ????????? | | ?????????????##########u% ##########?????????????? | | ?????????????# # r #! ##????????????? | | ?????????????#""" # *# """ # ????? #????? | | ?????????????#"R ! # %+% !""" # g?"""? #????? | | ?????????????#""" # !#!*%""" # """"" #????? | | ?????????????# + # # """"" #????? | | ?????????????# """ # # # g""""" #????? | | ?????????????# """ # # =/ # """ #????? | | ?????????????# """ # # /! =# #????? | | ?????????????#= # # # #????? | | ?????????????##########r ##########?? ??????? | | ??????????????????????# #????????????#+#???????? | | ?###########??????????# #????????????# #???????? | | ?# #######???## ##???????????# #???????? | | ?# [[ # = #???# ########????# #???????? | | ?# [[[ # !=##### ###### #???????? | | ?# [[[ + % %% #???????? | | ?# # = ##### % ###### #???????? | | ?# ] #=%!%=#???# #### ###### #???????? | | ?# # #+####?####+###### # !# #???????? | | ?# # #%!! #?# ## #[] # #???????? | | ?######+#### #! #?# """ ## #[ # #???????? | | ?????# # [ #?# """ ## #% # #???????? | | ?????# # #?#* """ ## # + #???????? | +----------------------------------------------------+ Best States ------------- Heat Dissipation 58 Coolant Potential 50 Energy Generation 16 Energy Capacity 290 Matter Stores 300 Matter Capacity 300 Sight Range 16 Robot Scan Range 20 Terrain Scan Range 16 Terrain Scan Density 10 Armor Coverage 225 Resistance: KI 30 Evasion (%) 44 Recoil Reduction 1 Relay Coupler Types 1 Relay Coupler Value 36 Authchip Count 1 Item Schematics ----------------- Exp. Sensor Array | -8/Materials | Scanalyzed Robot Schematics ------------------ None Fabricated ------------ Nothing Alien Tech Used ----------------- None Achievements -------------- None Challenges ------------ None Game ------ Seed CoilContainmentExtrapolator Manual? 0 Play Time 01:13:32 Cumulative 47.0 hours Start 2024.08.18 @ 16:00:51 End 2024.08.19 @ 00:39:41 Sessions 1 Manual Loads 0 Difficulty Rogue Special Mode None Game No. 62 Rogue 62 Adventurer 0 Explorer 0 Win Type - Total 0 Types 0/0/0/0/0/0/0/0/0 Lore% 13 Gallery% 30 Achievement% 27 Wizard Run 0 Options --------- Layout 1 ASCII 0 Keyboard 0 Movement Arrows Keybinds 0 Fullscreen 1 Font 16/SmallcapsGlow Map View 50x40 Zoom Use 0% Tactical HUD 1 Map Filters NONE Filters NONE Steam SD RUN: 1bc0590a-4878-4a3c-9f06-cda401cd14a3